bitfinex/quotes_ETHUSD_20260109
["timestamp","ask_amount","ask_price","bid_price","bid_amount"]
[1767982238955,0.01601948,3107.8,3107.1,3.22117416]
[1767982239492,0.253,3107.9,3107.1,0.00280136]
[1767982240591,0.00080176,3108.1,3107.1,0.95264178]
[1767982240783,0.00080176,3108.1,3107.3,0.94984042]
[1767982241528,0.00080264,3108.7,3107.9,6.43521348]
[1767982241660,0.00080264,3108.7,3108.0,0.94984042]
[1767982241863,0.94743063,3109.4,3108.0,0.94984042]
[1767982242069,0.94743063,3109.2,3108.3,0.00080272]
[1767982242274,0.253,3109.3,3108.3,0.00080272]
[1767982242707,1.20043063,3109.3,3108.3,0.00080272]
[1767982242878,0.94743063,3109.2,3108.3,0.00080272]
[1767982243078,0.69464931,3109.3,3108.3,0.00080272]
[1767982243280,0.253,3109.3,3108.3,0.95064314]
[1767982244216,0.94743063,3109.5,3108.4,6.43417834]
[1767982244419,0.253,3109.3,3108.4,6.43417834]
[1767982244871,0.000802,3109.6,3108.5,0.94984042]
[1767982246272,0.000802,3109.6,3109.0,0.94984042]
[1767982248143,0.000802,3109.6,3109.0,3.21637621]
[1767982248342,0.000802,3109.6,3109.1,0.32163762]
[1767982250558,0.000802,3109.6,3109.1,3.53796303]
[1767982251023,0.000802,3109.6,3108.4,0.94410074]
[1767982251228,0.000802,3109.6,3108.9,3.21655076]
[1767982252057,0.000802,3109.6,3109.0,3.21645033]
[1767982252259,0.000802,3109.6,3109.1,3.21635907]
[1767982252544,0.000802,3109.6,3109.0,3.21641654]
[1767982253635,0.97728141,3109.6,3108.6,0.253]
[1767982254052,1.23028141,3109.6,3108.3,0.94490346]
[1767982254254,1.23028141,3109.6,3108.4,0.94410074]
[1767982255082,1.23028141,3109.6,3108.5,6.875477]
[1767982255777,0.97647941,3109.5,3108.5,3.21698568]
[1767982255983,0.97647941,3109.5,3108.3,0.25380272]
[1767982256176,0.97647941,3109.5,3108.3,3.47093012]
[1767982256569,0.97647941,3109.2,3108.3,3.47093012]
[1767982256884,0.97647941,3109.2,3108.3,0.00080272]
[1767982257056,0.97647941,3109.0,3108.3,0.00080272]
[1767982258079,0.253,3108.9,3108.3,0.00080272]
[1767982258281,0.97647941,3108.8,3108.3,0.00080272]
[1767982258983,0.97647941,3108.8,3108.5,0.002]
[1767982260090,4.19318307,3108.8,3108.5,0.002]
[1767982260395,0.97647941,3108.6,3107.7,0.00080184]
[1767982260962,0.44542103,3108.7,3107.7,0.94490258]
[1767982261295,0.00080272,3108.7,3107.9,0.94410074]
[1767982261659,0.00080272,3108.7,3107.8,6.43542054]
[1767982261660,0.00080272,3108.7,3107.8,3.21771027]
[1767982261859,0.97728213,3108.7,3107.8,6.43542054]
[1767982262062,0.00080272,3108.7,3107.9,0.94410074]
[1767982262261,0.00080272,3108.7,3108.1,0.94410074]
[1767982262460,0.001,3109.3,3108.5,0.94410074]
[1767982262855,0.94710394,3109.3,3108.3,0.0008028]
[1767982263269,0.001,3109.3,3108.5,0.9968701]
[1767982264298,0.001,3109.3,3108.4,0.253]
[1767982264469,0.001,3109.3,3108.5,0.253]
[1767982264676,0.001,3109.3,3108.5,1.2498701]
[1767982264875,0.001,3109.3,3108.6,0.9968701]
[1767982265177,0.001,3109.3,3108.7,10.64720623]
[1767982265372,0.001,3109.3,3108.9,0.9968701]
[1767982265577,0.000802,3109.6,3108.9,0.9968701]
[1767982265990,0.001,3110.0,3109.3,0.99769022]
[1767982267111,0.001,3110.0,3109.5,0.9968701]
[1767982267820,0.001,3110.0,3109.4,3.21605454]
[1767982268018,0.94710394,3110.0,3109.3,0.00082012]
[1767982268220,0.001,3110.0,3109.3,6.43310929]
[1767982268388,0.001,3110.0,3109.4,0.74307815]
[1767982268790,0.94710394,3110.0,3109.3,0.00082012]
[1767982269024,0.001,3110.0,3109.3,0.00082012]
[1767982269521,0.001,3110.0,3109.3,0.99769022]
[1767982270824,0.001,3110.0,3109.3,0.00082012]
[1767982271625,0.001,3110.0,3109.3,0.99769022]
[1767982271919,0.001,3110.0,3109.4,1.06472765]
[1767982272526,0.001,3110.0,3109.6,0.002]
[1767982272691,0.001,3109.7,3109.6,0.002]
[1767982272888,0.001,3109.7,3109.2,0.00080208]
[1767982273094,0.00182012,3109.7,3109.2,0.00080208]
[1767982275312,0.44347155,3109.7,3109.2,0.00080208]
[1767982275509,0.00182012,3109.7,3109.2,0.00080208]
[1767982278098,0.94792406,3109.7,3109.2,0.00080208]
[1767982279114,0.00182012,3109.7,3109.2,0.00080208]
[1767982281136,0.24319084,3109.9,3109.2,0.00080208]
[1767982281340,0.24319084,3109.9,3109.3,0.00082094]
[1767982284905,3.45873163,3109.9,3109.3,0.00082094]
[1767982285107,0.34597316,3109.8,3109.3,0.00082094]
[1767982285508,0.94610394,3109.7,3109.3,0.00082094]
[1767982285727,0.00082094,3109.3,3108.5,3.46991047]
[1767982286243,0.00082094,3109.3,3108.7,3.21669696]
[1767982286439,0.94692488,3109.3,3108.3,3.21795105]
[1767982286743,0.94610394,3109.1,3108.3,0.0008028]
[1767982286906,1.68396662,3109.0,3108.3,0.0008028]
[1767982287535,0.94610394,3108.9,3108.3,0.0008028]
[1767982287739,0.94610394,3108.8,3108.3,0.0008028]
[1767982288144,0.94610394,3108.6,3108.0,0.002]
[1767982290445,4.16301652,3108.6,3108.0,0.002]
[1767982290647,4.90106657,3108.6,3108.0,0.002]
[1767982290817,1.68415399,3108.6,3108.0,0.002]
[1767982291513,0.0008028,3108.7,3108.0,0.002]
[1767982292126,0.94690674,3108.7,3108.0,0.002]
[1767982292446,0.94610394,3108.6,3108.0,0.002]
[1767982292947,3.21698568,3108.5,3108.0,0.002]
[1767982293255,0.0008028,3108.7,3108.0,0.002]
[1767982293747,0.76582882,3108.7,3108.0,0.002]
[1767982297350,0.96315206,3108.6,3108.0,0.002]
[1767982298229,0.96315206,3108.4,3108.3,0.002]
[1767982298423,0.96315206,3108.4,3108.0,0.002]
[1767982298624,0.96315206,3108.3,3107.7,0.00080184]
[1767982298822,1.38116583,3108.3,3107.7,0.00080184]
[1767982299335,0.96315206,3108.2,3107.7,0.00080184]
[1767982300850,3.63524375,3108.3,3107.7,0.00080184]
[1767982301250,0.41801377,3108.3,3107.7,0.00080184]
[1767982301441,3.63521583,3108.3,3107.7,0.00080184]
[1767982301642,0.38882158,3108.2,3107.7,0.00080184]
[1767982302846,0.96315206,3108.5,3107.7,0.00080184]
[1767982303047,7.6501726,3108.5,3107.7,0.00080184]
[1767982303640,1.21615206,3108.5,3107.7,0.00080184]
[1767982303839,0.0008028,3108.7,3107.7,0.95607615]
[1767982304159,0.253,3108.6,3107.7,0.95607615]
[1767982304562,0.0008028,3108.7,3107.7,0.95607615]
[1767982304956,0.0008028,3108.7,3107.8,7.39069485]
[1767982305152,0.0008028,3108.7,3107.9,0.73914967]
[1767982305977,0.0008028,3108.7,3108.0,0.95527431]
[1767982306863,0.0008028,3108.7,3108.1,7.39007369]
[1767982309769,0.0008028,3108.7,3108.2,0.96213838]
[1767982309962,0.25382094,3109.3,3108.3,0.96494126]
[1767982310159,0.001,3108.4,3108.3,0.96494126]
[1767982310360,0.98944574,3109.2,3108.3,1.06451691]
[1767982310558,0.00082094,3109.3,3108.3,1.06451691]
[1767982310764,0.99026668,3109.3,3108.3,1.06451691]
[1767982311165,0.99026668,3109.3,3108.4,3.21708917]
[1767982311679,0.99026668,3109.3,3108.4,6.43417834]
[1767982311884,0.99026668,3109.3,3108.5,0.74986953]
[1767982312480,0.99026668,3109.3,3108.5,0.72931288]
[1767982313483,0.98944574,3109.2,3108.5,0.72931288]
[1767982313690,0.98944574,3109.2,3108.5,3.21695194]
[1767982315694,0.98944574,3109.2,3108.4,3.21708917]
[1767982316595,0.98944574,3109.2,3108.4,6.43417834]
[1767982317360,0.00082094,3109.3,3108.4,7.39631672]
[1767982320561,0.00082094,3109.3,3108.4,4.17922755]
[1767982320761,0.99026668,3109.3,3108.5,0.73991973]
[1767982320990,0.99026668,3109.3,3108.3,3.21993659]
[1767982321194,0.99026668,3109.3,3108.3,0.00280288]
[1767982321195,1.00628616,3109.3,3108.3,0.00280288]
[1767982321396,0.98944574,3109.0,3108.3,0.00280288]
[1767982321604,0.98944574,3108.8,3108.3,0.00280288]
[1767982321770,0.98944574,3108.6,3108.0,0.002]
[1767982322093,0.98944574,3108.5,3108.0,0.002]
[1767982322390,1.41016099,3108.5,3108.0,0.002]
[1767982322595,0.42071525,3108.5,3108.0,0.002]
[1767982323769,0.00080288,3108.7,3108.0,0.90908747]
[1767982324322,0.00080288,3108.7,3108.1,6.43479938]
[1767982324488,0.94528,3108.7,3108.0,0.002]
[1767982326624,4.16208728,3108.7,3108.0,0.002]
[1767982327202,7.37889456,3108.7,3108.0,0.002]
[1767982327530,0.73788946,3108.6,3108.0,0.002]
[1767982330599,4.1620617,3108.7,3108.0,0.002]
[1767982331431,0.00080288,3108.7,3108.0,0.90908747]
[1767982331726,0.00080288,3108.7,3108.1,0.90708747]
[1767982333298,0.00080288,3108.7,3108.3,0.90708747]
[1767982333497,0.94447712,3109.2,3108.4,1.0558976]
[1767982333717,0.00082094,3109.3,3108.4,2.21598507]
[1767982335463,0.00082094,3109.3,3108.3,0.00280296]
[1767982335464,0.94547712,3109.0,3108.3,0.25580296]
[1767982335602,0.94547712,3109.0,3108.3,0.00280296]
[1767982337626,4.16104889,3108.9,3108.3,0.00280296]
[1767982337832,4.89889306,3108.9,3108.3,0.00280296]
[1767982338127,0.94447712,3108.8,3108.3,0.00280296]
[1767982338828,1.19747712,3108.7,3108.0,0.002]
[1767982339028,0.94447712,3108.2,3107.7,0.00080184]
[1767982339249,1.21429844,3108.1,3107.2,0.002]
[1767982339420,0.94447712,3108.0,3107.2,0.002]
[1767982339737,0.26982132,3108.1,3107.2,0.002]
[1767982339738,0.94447712,3107.8,3107.2,0.002]
[1767982340034,2.00420685,3107.7,3107.2,0.002]
[1767982341621,0.94447712,3108.0,3107.2,0.002]
[1767982341828,3.21822704,3108.1,3107.2,0.002]
[1767982341829,0.00080184,3108.1,3107.2,0.002]
[1767982344811,0.00080184,3108.1,3107.2,6.43866322]
[1767982345710,0.00080184,3108.1,3107.3,0.90708747]
[1767982345912,0.00080184,3108.1,3107.4,0.73457507]
[1767982346228,0.00080184,3108.1,3107.4,1.64166254]
[1767982346610,0.00080184,3108.1,3107.4,0.73457507]
[1767982347053,0.00080184,3108.1,3107.5,3.21802091]
[1767982347255,0.00080184,3108.1,3107.5,3.22002091]
[1767982347475,0.00080184,3108.1,3107.5,3.542023]
[1767982347813,0.00080184,3108.1,3107.5,6.76004391]
[1767982348960,0.00080184,3108.1,3107.5,3.52867424]
[1767982350641,0.00080184,3108.1,3107.5,6.74669515]
[1767982350849,0.94527896,3108.1,3107.5,0.26771425]
[1767982351145,0.94527896,3108.1,3107.2,0.002]
[1767982351146,0.94447712,3107.8,3107.2,0.002]
[1767982355180,4.16218782,3107.8,3107.2,0.002]
[1767982356059,0.99734376,3107.7,3107.2,0.00117906]
[1767982356366,0.99734376,3107.5,3107.2,0.00117906]
[1767982358371,4.21536516,3107.5,3107.2,0.00117906]
[1767982358540,0.99734376,3107.4,3107.0,2.0]
[1767982358741,0.99734376,3107.4,3107.0,1.9725186]
[1767982358946,0.99734376,3106.9,3106.1,0.00080168]
[1767982359142,0.99734376,3106.4,3105.4,3.22015367]
[1767982359349,0.253,3106.3,3105.5,3.22007678]
[1767982359531,0.253,3106.3,3105.6,0.32200768]
[1767982360170,0.00080168,3106.5,3105.6,3.54198657]
[1767982360376,0.99814544,3106.5,3105.6,3.54198657]
[1767982360543,0.253,3106.4,3105.6,3.54198657]
[1767982360774,0.253,3106.3,3105.6,6.76197626]
[1767982361073,0.253,3106.3,3105.7,0.67619763]
[1767982361475,0.99734376,3106.4,3105.5,3.22008951]
[1767982361669,0.253,3106.3,3105.6,3.21997519]
[1767982362175,0.253,3106.2,3105.3,0.93128117]
[1767982362371,0.253,3106.1,3105.3,0.93128117]
[1767982362675,0.253,3106.1,3105.4,1.05932967]
[1767982364093,0.253,3106.1,3105.5,6.44018676]
[1767982364285,0.99814544,3106.5,3105.5,6.44018676]
[1767982364486,0.253,3106.4,3105.5,6.44018676]
[1767982364983,0.99814544,3106.5,3105.5,6.44018676]
[1767982365205,0.253,3106.4,3105.6,1.68123281]
[1767982365796,0.253,3106.4,3105.6,0.74995164]
[1767982366000,0.99734376,3106.3,3105.5,6.44018676]
[1767982366200,0.99734376,3106.3,3105.3,6.44060154]
[1767982367507,0.253,3106.4,3105.4,0.93128117]
[1767982367712,0.99734376,3106.3,3105.3,6.44060154]
[1767982368423,0.99734376,3106.3,3105.2,6.44161104]
[1767982368623,0.99734376,3106.3,3105.3,0.73728922]
[1767982369199,0.00080168,3106.5,3105.4,0.98298062]
[1767982369427,0.253,3106.2,3105.4,0.98298062]
[1767982369700,0.253,3106.1,3105.4,0.98298062]
[1767982369910,0.25100001,3106.1,3105.4,0.98298062]
[1767982370128,0.25100001,3106.1,3105.5,1.1550076]
[1767982370799,0.25100001,3106.1,3105.6,3.21998969]
[1767982371805,0.253,3106.2,3105.6,3.21998969]
[1767982372028,0.253,3106.2,3105.5,3.3920867]
[1767982373024,4.45336281,3106.2,3105.5,0.17202698]
[1767982373228,0.98096088,3106.1,3105.6,0.002]
[1767982375241,0.98096088,3105.8,3105.2,0.00080208]
[1767982375535,0.98096088,3105.6,3105.2,0.00080208]
[1767982375738,0.98176296,3105.6,3104.3,3.22127526]
[1767982375944,0.97976297,3105.6,3104.4,3.22122992]
[1767982376145,0.99578245,3105.6,3104.4,3.22122992]
[1767982376311,0.97976297,3105.6,3104.5,3.22111834]
[1767982376514,0.253,3105.5,3104.6,0.42129183]
[1767982377237,3.22009338,3105.5,3104.6,3.6422411]
[1767982377444,0.253,3105.4,3104.6,3.6422411]
[1767982377644,0.253,3105.4,3104.6,6.86326796]
[1767982377808,0.253,3105.4,3104.6,3.6422411]
[1767982378011,0.253,3105.4,3104.6,0.42129183]
[1767982378335,0.98096088,3105.3,3104.6,0.00080176]
[1767982378709,0.98096088,3105.3,3104.6,3.22180308]
[1767982378909,0.253,3105.2,3104.6,6.44282994]
[1767982379114,0.253,3105.2,3104.6,3.22180308]
[1767982379315,0.253,3105.2,3104.6,0.00080176]
[1767982380828,0.253,3105.1,3104.6,0.00080176]
[1767982381747,0.253,3105.0,3104.6,0.00080176]
[1767982382654,0.253,3104.9,3104.6,0.00080176]
[1767982382855,0.01682156,3105.6,3104.6,0.00080176]
[1767982382856,0.00080208,3105.6,3104.6,0.94034385]
[1767982383187,0.76871879,3107.3,3106.7,0.93954209]
[1767982383392,0.00080184,3108.1,3106.8,0.89830494]
[1767982383684,0.00080184,3108.1,3107.4,0.93954209]
[1767982383885,0.01601948,3107.6,3107.1,0.00080144]
[1767982384049,0.01601948,3107.2,3106.5,0.0008096]
[1767982384246,0.01601948,3107.0,3106.5,0.0008096]
[1767982384448,0.253,3106.9,3106.5,0.0008096]
[1767982384649,0.253,3106.8,3106.5,0.0008096]
[1767982387163,0.00080176,3106.5,3106.1,3.21243962]
[1767982387376,0.00080176,3106.5,3106.1,7.1690635]
[1767982387580,0.00080176,3106.5,3106.2,0.93954209]
[1767982387754,0.00080176,3106.5,3106.2,4.15885572]
[1767982389255,0.00080176,3106.5,3106.2,7.37822343]
[1767982389559,0.254,3107.2,3106.5,0.0008104]
[1767982391100,0.253,3107.1,3106.5,0.0008104]
[1767982393203,0.01601948,3107.0,3106.5,0.0008104]
[1767982393407,0.45749838,3107.0,3106.5,0.0008104]
[1767982394006,0.01601948,3107.0,3106.5,0.0008104]
[1767982396704,0.9103038,3106.9,3106.5,0.0008104]
[1767982396905,0.253,3107.1,3106.5,0.0008104]
[1767982397984,0.9103038,3106.9,3106.5,0.0008104]
[1767982398175,0.92632328,3106.6,3106.5,0.0008104]
[1767982398413,0.9103038,3106.6,3106.1,0.00080184]
[1767982398614,0.9111142,3106.9,3106.1,0.00080184]
[1767982398814,0.01601948,3106.7,3106.1,0.00080184]
[1767982399743,0.001,3106.5,3106.1,0.00080184]
[1767982402425,0.9113038,3106.5,3106.1,0.00080184]
[1767982402765,0.9103038,3106.2,3106.1,0.00080184]
[1767982402932,0.9103038,3106.1,3105.8,0.002]
[1767982403133,1.35016253,3106.1,3105.8,0.002]
[1767982403540,0.9103038,3106.1,3105.8,0.002]
[1767982403759,0.01601948,3106.2,3105.8,0.002]
[1767982403958,0.253,3106.1,3105.8,0.002]
[1767982405166,0.253,3106.2,3105.8,0.002]
[1767982407545,0.253,3106.4,3105.8,0.94154209]
[1767982408369,0.9103038,3106.4,3105.8,0.002]
[1767982408546,0.9103038,3106.2,3105.8,0.002]
[1767982409278,0.01601948,3106.1,3105.8,0.002]
[1767982409783,0.98802436,3106.3,3105.9,0.93954209]
[1767982409939,0.00180184,3106.5,3105.8,0.94154209]
[1767982410670,0.253,3106.6,3106.1,0.00080192]
[1767982411763,0.253,3106.6,3106.1,0.00280192]
[1767982412156,0.253,3106.6,3106.1,0.64701785]
[1767982412469,0.001,3106.2,3106.1,0.64701785]
[1767982412664,0.253,3106.6,3106.1,0.64701785]
[1767982413454,0.9111142,3106.9,3106.1,0.64701785]
[1767982413647,0.253,3106.8,3106.1,0.64701785]
[1767982413968,0.253,3106.8,3106.2,6.43873542]
[1767982414367,0.9111142,3106.9,3106.2,6.43873542]
[1767982414541,0.253,3106.8,3106.2,6.43873542]
[1767982414743,0.253,3106.8,3106.2,3.21936771]
[1767982415359,0.253,3106.8,3106.2,6.43873542]
[1767982415562,0.9111142,3106.9,3106.2,6.43873542]
[1767982415563,0.9111142,3106.9,3106.3,0.64415373]
[1767982415945,0.253,3106.8,3106.4,3.21916044]
[1767982416141,0.25100001,3106.8,3106.4,3.21916044]
[1767982416364,0.0008104,3106.9,3106.4,6.43832088]
[1767982416742,0.0008104,3106.9,3106.4,7.34575376]
[1767982416941,0.0008104,3106.9,3106.5,1.12091281]
[1767982417773,0.0008104,3106.9,3106.3,3.21921418]
[1767982418294,0.95070941,3106.9,3106.1,0.00280192]
[1767982419085,0.95070941,3106.9,3106.5,0.09]
[1767982421397,0.0008104,3106.9,3106.5,3.30903795]
[1767982422717,0.00080144,3107.5,3106.8,0.90743288]
[1767982423019,0.00080184,3108.1,3107.1,0.00080152]
[1767982423169,0.00080184,3108.1,3107.2,9.65499483]
[1767982423369,0.00080184,3108.1,3107.3,0.90743288]
[1767982423887,0.95070085,3108.1,3107.3,0.09]
[1767982424099,3.48628749,3108.3,3107.7,0.00080192]
[1767982424100,0.96591849,3108.0,3107.7,0.00080192]
[1767982424933,0.96591849,3108.0,3107.7,0.09080192]
[1767982425636,0.253,3107.9,3107.7,0.0851691]
[1767982426342,0.94989901,3108.0,3107.7,0.0851691]
[1767982426547,1.20289901,3108.0,3107.7,0.0851691]
[1767982426834,0.00080192,3108.1,3107.7,0.0851691]
[1767982427047,0.25380192,3108.1,3107.7,0.0851691]
[1767982427331,0.00080192,3108.1,3107.7,3.30296504]
[1767982427504,0.001,3108.4,3107.7,3.95586396]
[1767982427693,0.001,3108.4,3107.7,8.08111065]
[1767982428821,0.00080296,3108.7,3107.8,0.94239768]
[1767982429624,0.00080296,3108.7,3108.0,0.94239768]
[1767982429925,0.00080296,3108.7,3107.9,6.43521348]
[1767982430097,0.00080296,3108.7,3108.0,0.64352135]
[1767982430690,0.00080296,3108.7,3107.8,3.217692]
[1767982430691,0.93072426,3108.6,3107.8,3.2176701]
[1767982430925,0.93072426,3108.6,3107.7,0.0859711]
[1767982430926,0.01601948,3108.4,3107.7,0.0859711]
[1767982432123,0.01601948,3108.4,3107.7,3.30375319]
[1767982433923,0.01682244,3108.7,3107.7,6.521567]
[1767982434242,0.253,3108.6,3107.7,3.30375319]
[1767982434600,0.253,3108.6,3107.7,6.521567]
[1767982434943,0.253,3108.6,3107.7,7.26796347]
[1767982436907,0.253,3108.6,3107.7,8.21036115]
[1767982437738,0.253,3108.6,3108.0,0.002]
[1767982438141,0.26982244,3108.7,3108.0,0.002]
[1767982439864,0.00080296,3108.7,3108.0,0.002]
[1767982440148,0.00080296,3108.7,3108.0,0.94439768]
[1767982441440,0.001,3109.0,3108.3,0.94320072]
[1767982441823,0.001,3109.0,3108.3,0.73860305]
[1767982442154,0.93072426,3108.8,3108.3,0.00080304]
[1767982442329,0.93072426,3108.8,3108.0,0.002]
[1767982442531,0.93072426,3108.6,3108.0,0.002]
[1767982443121,0.25380304,3108.7,3108.0,0.002]
[1767982443122,0.00080304,3108.7,3108.0,0.002]
[1767982443459,0.00080304,3108.7,3108.0,3.21949584]
[1767982446263,0.00080304,3108.7,3108.0,0.002]
[1767982447459,4.65126613,3108.7,3108.0,0.002]
[1767982447753,1.00241209,3108.6,3108.0,0.002]
[1767982448391,0.01601948,3108.6,3108.0,0.002]
[1767982450156,1.00241209,3108.6,3108.0,0.002]
[1767982450529,1.00241209,3108.6,3108.3,0.002]
[1767982450730,0.46673347,3108.5,3108.3,0.002]
[1767982450950,0.001,3108.4,3108.3,0.002]
[1767982455383,0.98739261,3108.4,3108.3,0.002]
[1767982455566,0.98739261,3108.4,3107.7,0.0859711]
[1767982455747,0.98739261,3108.4,3107.8,3.21770617]
[1767982455947,0.001,3108.4,3107.7,3.30373336]
[1767982456368,0.98739261,3108.4,3107.7,3.30373336]
[1767982456582,0.98739261,3108.4,3107.7,0.0859711]
[1767982456765,0.98639261,3108.2,3107.7,0.0859711]
[1767982459784,0.98639261,3108.1,3107.7,0.0859711]
[1767982460585,0.98639261,3108.1,3107.7,0.00399733]
[1767982461180,0.253,3108.0,3107.7,0.00399733]
[1767982461389,1.23939261,3108.0,3107.7,0.00399733]
[1767982463093,0.42205327,3108.2,3107.7,0.00399733]
[1767982463285,0.253,3108.2,3107.7,0.00399733]
[1767982463796,0.98639261,3108.1,3107.7,0.00399733]
[1767982464286,0.98639261,3108.1,3107.7,0.00031534]
[1767982466264,4.20382478,3108.1,3107.7,0.00031534]
[1767982466582,1.00241209,3108.0,3107.7,0.00031534]
[1767982466787,1.00241209,3107.8,3107.6,0.00031534]
[1767982468589,0.74372764,3107.9,3107.6,0.00031534]
[1767982468800,1.00241209,3108.0,3107.6,0.00031534]
[1767982470401,0.000802,3108.1,3107.6,0.00031534]
[1767982474299,0.92053374,3108.1,3107.6,0.00031534]
[1767982476710,0.001,3107.8,3107.6,0.00031534]
[1767982482186,0.92053374,3108.1,3107.6,0.00031534]
[1767982482605,0.000802,3108.1,3107.6,0.00031534]
[1767982483685,0.000802,3108.1,3107.6,7.36325402]
[1767982483882,0.000802,3108.1,3107.7,0.7363254]
[1767982485288,0.000802,3108.1,3107.6,7.36325402]
[1767982488413,0.000802,3108.1,3107.6,4.14533666]
[1767982489118,0.001,3107.8,3107.6,7.36325402]
[1767982489313,0.96556039,3108.1,3107.6,6.43615006]
[1767982489526,0.000802,3108.1,3107.6,6.43615006]
[1767982490388,0.000802,3108.1,3107.6,7.17843529]
[1767982491424,0.000802,3108.1,3107.6,3.96051793]
[1767982491925,0.96556039,3108.1,3107.6,3.96051793]
[1767982492539,0.96475839,3107.9,3107.6,0.00031534]
[1767982496957,0.01930595,3108.0,3107.6,0.00031534]
[1767982497844,0.98406434,3108.0,3107.6,0.00031534]
[1767982500653,0.96475839,3107.7,3107.1,0.00080152]
[1767982500833,0.98406434,3107.5,3107.1,0.00080152]
[1767982501745,0.98406434,3107.5,3106.7,0.002]
[1767982501746,0.98406434,3107.2,3106.7,0.002]
[1767982501914,0.96475839,3106.9,3106.5,0.00281121]
[1767982502241,0.96475839,3106.9,3105.8,3.22176567]
[1767982502242,0.9655696,3106.9,3105.9,6.58540917]
[1767982502547,0.9655696,3106.9,3106.0,0.98670225]
[1767982502741,0.9655696,3106.9,3105.9,5.59870692]
[1767982502943,0.9655696,3106.9,3106.1,0.5629528]
[1767982503145,0.9655696,3106.9,3106.2,5.59870692]
[1767982503921,0.9655696,3106.9,3106.1,1.55112648]
[1767982504247,0.9655696,3106.9,3106.2,3.21936771]
[1767982504434,0.9920537,3106.8,3106.1,0.00280192]
[1767982504957,0.9920537,3106.8,3106.1,3.22225284]
[1767982505719,0.9920537,3106.8,3106.1,6.4417242]
[1767982506050,0.97274775,3106.8,3106.1,6.4417242]
[1767982506350,0.97274775,3106.8,3106.1,0.00280192]
[1767982509428,0.97274775,3106.7,3106.1,0.00280192]
[1767982509644,1.39197952,3106.7,3106.1,0.00280192]
[1767982509954,0.97274775,3106.7,3106.1,0.00280192]
[1767982510746,0.97355896,3106.9,3106.1,0.00280192]
[1767982511368,4.19220915,3106.9,3106.1,3.22227328]
[1767982511525,0.9920537,3106.8,3106.1,0.00280192]
[1767982511719,0.97274775,3106.5,3106.1,0.00280192]
[1767982512161,0.97274775,3106.5,3106.4,0.002]
[1767982514256,0.001,3106.6,3106.4,0.002]
[1767982515158,0.9930537,3106.6,3106.4,0.002]
[1767982515358,0.97374775,3106.6,3106.4,0.002]
[1767982515731,1.41730903,3106.5,3106.4,0.002]
[1767982516028,0.97274775,3106.5,3106.4,0.002]
[1767982516232,0.97274775,3106.5,3106.1,0.00280192]
[1767982516233,0.97274775,3106.4,3106.1,0.00280192]
[1767982516433,0.9920537,3106.4,3106.1,0.00280192]
[1767982516640,0.9920537,3106.2,3106.0,0.002]
[1767982517833,0.9920537,3106.2,3105.8,0.002]
[1767982518485,0.42113719,3106.1,3105.8,0.002]
[1767982519369,0.97274775,3106.0,3105.8,0.002]
[1767982519672,0.97274775,3106.0,3105.2,0.00080216]
[1767982519673,0.9920537,3106.0,3105.2,0.00080216]
[1767982519871,0.9920537,3106.0,3104.8,0.002]
[1767982519872,5.59870692,3105.3,3104.8,0.002]
[1767982520163,0.01930595,3105.2,3104.4,4.20936736]
[1767982520353,0.97274775,3105.2,3104.4,7.43060173]
[1767982520553,0.97274775,3105.2,3104.4,4.20936736]
[1767982521063,0.97274775,3105.2,3104.4,3.22119368]
[1767982521250,1.39398487,3105.2,3104.4,3.22119368]
[1767982521865,1.39398487,3105.2,3104.4,6.44242805]
[1767982522076,1.39398487,3105.2,3104.4,3.22119368]
[1767982522372,1.39398487,3105.2,3104.3,7.43082526]
[1767982523068,1.39398487,3105.2,3104.3,4.20948712]
[1767982523272,4.6143968,3105.2,3104.3,4.20948712]
[1767982523565,0.97274775,3105.1,3104.3,3.22131344]
[1767982524068,0.97274775,3105.1,3104.3,6.44265158]
[1767982524364,0.97274775,3105.1,3104.3,7.43082526]
[1767982524760,0.001,3104.9,3104.3,7.43082526]
[1767982527357,0.001,3104.9,3104.3,4.20948712]
[1767982527685,0.001,3104.9,3104.3,7.43082526]
[1767982528180,0.001,3104.9,3104.3,4.20948712]
[1767982528365,0.97374775,3104.9,3104.2,3.22224351]
[1767982528665,0.97374775,3104.9,3104.2,0.0008016]
[1767982528666,0.97174776,3104.9,3104.2,0.0008016]
[1767982528869,0.253,3105.0,3104.2,0.0008016]
[1767982528870,0.97274775,3104.7,3104.2,0.0008016]
[1767982529273,0.01930595,3104.8,3104.1,0.003]
[1767982529274,0.97274775,3104.5,3104.1,0.003]
[1767982530176,0.01930595,3103.7,3102.9,0.003]
[1767982530375,0.9920537,3103.5,3102.9,0.003]
[1767982530564,0.97274775,3103.4,3102.9,0.003]
[1767982531245,0.00081202,3103.8,3103.0,7.45891326]
[1767982531450,0.97274775,3103.6,3103.4,0.04700928]
[1767982533585,0.98920047,3103.6,3103.4,0.04700928]
[1767982533768,1.00850642,3103.6,3103.4,0.04700928]
[1767982534093,1.00850642,3103.6,3103.0,0.02536414]
[1767982534094,1.00850642,3103.4,3103.0,0.02536414]
[1767982534687,4.21157665,3103.3,3103.0,0.02536414]
[1767982534889,0.01930595,3103.2,3103.0,0.02536414]
[1767982535055,1.00850642,3103.2,3103.0,0.02536414]
[1767982535257,0.42308826,3103.1,3103.0,0.02536414]
[1767982535568,1.00850642,3103.4,3103.0,0.02536414]
[1767982535789,0.98920047,3103.4,3103.0,0.02536414]
[1767982536082,1.00850642,3103.4,3103.0,0.02536414]
[1767982536391,1.00850642,3103.4,3102.5,0.003]
[1767982536392,0.98920047,3103.1,3102.5,0.003]
[1767982536570,0.253,3103.0,3102.5,0.003]
[1767982536974,3.47569442,3103.0,3102.5,0.003]
[1767982537190,4.48420084,3103.0,3102.5,0.003]
[1767982537694,1.00850642,3102.8,3102.5,0.003]
[1767982537861,1.00850642,3102.8,3102.1,0.005]
[1767982539288,4.23141617,3102.8,3102.1,0.005]
[1767982539572,1.00850642,3102.6,3102.1,0.005]
[1767982539774,1.24220047,3102.5,3102.1,1e-08]
[1767982540374,1.24220047,3102.5,3100.6,3.22513748]
[1767982540375,0.01930595,3101.6,3100.6,0.91102875]
[1767982540573,0.253,3101.5,3100.7,3.22500267]
[1767982540782,0.253,3101.5,3100.6,3.22513668]
[1767982541086,0.253,3101.5,3100.3,0.00081607]
[1767982541087,1.00850642,3101.2,3100.3,0.00081607]